Workbook

Sheet Sheet1
A3: 2010 | B3: 54498940 | F3: 2010 | G3: 2011 | H3: 2012 | I3: 2013 | J3: 2014 | K3: 2015 | L3: 2016 | M3: 2017 | N3: 2018 | O3: 2019 | P3: 2020
A4: 2011 | B4: 54644550 | E4: Факт | F4: =B3 -> 54498940 | G4: =B4 -> 54644550 | H4: =B5 -> 54836850 | I4: =B6 -> 55088430 | J4: =B7 -> 55412200 | K4: =B8 -> 55822990 | L4: =B9 -> 56331840 | M4: =B10 -> 56935170 | N4: =B11 -> 57625150 | O4: 58394380
A5: 2012 | B5: 54836850
A6: 2013 | B6: 55088430 | E6: факт/100 | F6: =F4/100 -> 544989.4 | G6: =G4/100 -> 546445.5 | H6: 548368.5 | I6: 550884.3 | J6: 554122 | K6: 558229.9 | L6: 563318.4 | M6: 569351.7 | N6: 576251.5 | O6: =O4/100 -> 583943.8
A7: 2014 | B7: 55412200 | E7: Расчет по формуле 2010-2018 | F7: =E39 -> 54498953.78 | G7: =F39 -> 54644347.88 | H7: 54837243.43 | I7: 55088046.05 | J7: 55412035.31 | K7: 55823508.82 | L7: 56331241.01 | M7: 56935256.51 | N7: 57624918.21 | O7: =N39 -> 58378330 | P7: 59163054.04
A8: 2015 | B8: 55822990 | E8: Разница между расчетом и фактом по формуле 2010-2018 | F8: =F4-F7 -> -13.7829 | G8: =G4-G7 -> 202.1184 | H8: -393.4321 | I8: 383.9456 | J8: 164.6875 | K8: -518.8224 | L8: 598.9919 | M8: -86.5056 | N8: 231.7851 | O8: 16050
A9: 2016 | B9: 56331840 | E9: Расчет по формуле 2010-2019 | F9: =E42 -> 54498962.47 | G9: =F42 -> 54644121.36 | H9: 54837522.27 | I9: 55087921.6 | J9: 55411683.75 | K9: 55823657.52 | L9: 56331731.71 | M9: 56935069.92 | N9: 57626024.55 | O9: 58395730 | P9: 59243375.07
A10: 2017 | B10: 56935170 | E10: Разница между расчетом и фактом по формуле 2010-2019 | F10: =F4-F9 -> -22.47000001 | G10: =G4-G9 -> 428.64 | H10: -672.27 | I10: 508.4 | J10: 516.25 | K10: -667.52 | L10: 108.29 | M10: 100.08 | N10: -874.55 | O10: -1350
A11: 2018 | B11: 57625150
A12: 2019
A13: 2020
E37: 1 | F37: 2 | G37: 3 | H37: 4 | I37: 5 | J37: 6 | K37: 7 | L37: 8 | M37: 9 | N37: 10 | O37: 11
E39: =1.8259*E37^6-87.143*E37^5+1254.6*E37^4-5786.5*E37^3+34398*E37^2+66473*E37+54402700 -> 54498953.78 | F39: =1.8259*F37^6-87.143*F37^5+1254.6*F37^4-5786.5*F37^3+34398*F37^2+66473*F37+54402700 -> 54644347.88 | G39: 54837243.43 | H39: 55088046.05 | I39: 55412035.31 | J39: 55823508.82 | K39: 56331241.01 | L39: 56935256.51 | M39: 57624918.21 | N39: 58378330 | O39: 59163054.04
E41: =0.0511*E37^6-1.8334*E37^5+23.517*E37^4-119.29*E37^3+518.65*E37^2+431.53*E37+544137 -> 544989.6247 | F41: =0.0511*F37^6-1.8334*F37^5+23.517*F37^4-119.29*F37^3+518.65*F37^2+431.53*F37+544137 -> 546441.2136 | G41: 548375.2227 | H41: 550879.216 | I41: 554116.8375 | J41: 558236.5752 | K41: 563317.3171 | L41: 569350.6992 | M41: 576260.2455 | N41: 583957.3 | O41: 592433.7507
E42: =E41*100 -> 54498962.47 | F42: =F41*100 -> 54644121.36 | G42: 54837522.27 | H42: 55087921.6 | I42: 55411683.75 | J42: 55823657.52 | K42: 56331731.71 | L42: 56935069.92 | M42: 57626024.55 | N42: 58395730 | O42: 59243375.07
J46: =16/58394 -> 0.0002740007535
J47: =J46*100 -> 0.02740007535
